fUSD/lending_fUSD_20250811
["ID","MTS","AMOUNT","RATE_DAILY","PERIOD"]
[378546716,1754910653718,-1097.57,0.00016629,2]
[378546717,1754910653727,-437.714035,0.00016629,2]
[378546718,1754910653737,-400.0,0.00016629,2]
[378546719,1754910653747,-1069.95,0.00016629,2]
[378546720,1754910653756,-500.65570258,0.00016629,2]
[378546721,1754910653768,-437.714035,0.00016629,2]
[378546722,1754910653777,-784.91,0.00016629,2]
[378546723,1754910653787,-400.0,0.00016629,2]
[378546724,1754910653797,-4611.8,0.00016629,2]
[378546725,1754910653807,-400.0,0.00016629,2]
[378546726,1754910653816,-400.0,0.00016629,2]
[378546727,1754910653826,-400.0,0.00016629,2]
[378546728,1754910653836,-400.0,0.00016629,2]
[378546729,1754910653845,-400.0,0.00016629,2]
[378546730,1754910653855,-400.0,0.00016629,2]
[378546731,1754910653865,-628.28,0.00016629,2]
[378546732,1754910653874,-628.28,0.00016629,2]
[378546733,1754910653884,-400.0,0.00016629,2]
[378546734,1754910653894,-400.0,0.00016629,2]
[378546735,1754910653903,-400.0,0.00016629,2]
[378546736,1754910653914,-1048.69,0.00016629,2]
[378546737,1754910653926,-400.0,0.00016629,2]
[378546738,1754910653935,-400.0,0.00016629,2]
[378546739,1754910653945,-400.0,0.00016629,2]
[378546740,1754910653955,-400.0,0.00016629,2]
[378546741,1754910653964,-400.0,0.00016629,2]
[378546742,1754910653974,-400.0,0.00016629,2]
[378546743,1754910653984,-7240.01,0.00016629,2]
[378546744,1754910653994,-400.0,0.00016629,2]
[378546745,1754910654004,-500.0,0.00016629,2]
[378546746,1754910654014,-400.0,0.00016629,2]
[378546747,1754910654023,-400.0,0.00016629,2]
[378546748,1754910654036,-400.0,0.00016629,2]
[378546749,1754910654046,-500.0,0.0001663,2]
[378546750,1754910654055,-500.0,0.0001663,2]
[378546751,1754910654065,-150.0,0.0001663,2]
[378546752,1754910654075,-500.0,0.0001663,2]
[378546753,1754910654085,-500.0,0.0001663,2]
[378546754,1754910654095,-500.0,0.0001663,2]
[378546755,1754910654106,-500.0,0.0001663,2]
[378546756,1754910654116,-519.44,0.0001663,2]
[378546757,1754910654125,-519.44,0.0001663,2]
[378546758,1754910654135,-500.0,0.0001663,2]
[378546759,1754910654145,-500.0,0.0001663,2]
[378546760,1754910654154,-4663.639356,0.0001663,2]
[378546761,1754910654164,-4663.639356,0.0001663,2]
[378546762,1754910654174,-500.0,0.0001663,2]
[378546763,1754910654184,-500.0,0.0001663,2]
[378546764,1754910654193,-628.28,0.0001663,2]
[378546765,1754910654203,-628.28,0.0001663,2]
[378546766,1754910654212,-2976.49,0.0001663,2]
[378546767,1754910654221,-2976.49,0.0001663,2]
[378546768,1754910654231,-300.0,0.00016637,2]
[378546769,1754910654241,-250.0,0.00016637,2]
[378546770,1754910654251,-500.0,0.00016637,2]
[378546771,1754910654262,-1000.0,0.00016637,5]
[378546772,1754910654272,-162.86565293,0.00016638,2]
[378546773,1754910654282,-500.0,0.00016647,2]
[378546774,1754910654292,-166.354128,0.00016647,2]
[378546775,1754910654302,-2466.66,0.00016647,2]
[378546776,1754910654311,-2352.86,0.00016647,2]
[378546777,1754910654320,-500.0,0.00016647,2]
[378546778,1754910654330,-760.56,0.00016647,2]
[378546779,1754910654340,-1451.36,0.00016647,2]
[378546780,1754910654350,-400.0,0.00016647,2]
[378546781,1754910654359,-1714.15,0.00016647,2]
[378546782,1754910654369,-500.0,0.00016647,2]
[378546783,1754910654378,-151.0,0.00016647,2]
[378546784,1754910654388,-3550.73,0.00016647,2]
[378546785,1754910654397,-762.81,0.00016647,2]
[378546786,1754910654406,-1050.87,0.00016647,2]
[378546787,1754910654416,-905.87,0.00016647,2]
[378546788,1754910654426,-4291.95,0.00016647,2]
[378546789,1754910654436,-500.0,0.00016647,2]
[378546790,1754910654445,-640.72,0.00016647,2]
[378546791,1754910654456,-437.714035,0.00016647,2]
[378546792,1754910654465,-437.714035,0.00016647,2]
[378546793,1754910654475,-2374.0,0.00016647,2]
[378546794,1754910654485,-500.0,0.00016647,2]
[378546795,1754910654495,-93310.26289567,0.00016648,2]
[378546796,1754910655302,-400.0,0.00016626,2]
[378546797,1754910655311,-169.11193096,0.00016628,2]
[378546798,1754910655365,-232.74978034,0.00016628,2]
[378546799,1754910655374,-1184.92084966,0.00016648,2]
[378546800,1754910655385,-1338.53365153,0.00016648,2]
[378546801,1754910656694,-287.78844493,0.00015402,2]
[378546802,1754910656769,-212.21155507,0.00015402,2]
[378546803,1754910656779,-400.0,0.00016627,2]
[378546804,1754910656788,-1969.56,0.00016627,2]
[378546805,1754910656798,-400.0,0.00016627,2]
[378546806,1754910656807,-400.0,0.00016628,2]
[378546807,1754910656816,-400.0,0.00016628,2]
[378546808,1754910656826,-400.0,0.00016628,2]
[378546809,1754910656835,-400.0,0.00016628,2]
[378546810,1754910656845,-400.0,0.00016629,2]
[378546811,1754910656855,-400.0,0.00016629,2]
[378546812,1754910656864,-54206.28503614,0.00016648,2]
[378546813,1754910656873,-151.0,0.00016648,2]
[378546814,1754910656882,-4437.51404882,0.00016648,2]
[378546815,1754910656894,-226.12530718,0.00016648,2]
[378546816,1754910656903,-1038.99191626,0.00016648,2]
[378546817,1754910656955,-3624.64743974,0.00016648,2]
[378546818,1754910656965,-500.0,0.00016659,2]
[378546819,1754910656974,-1000.0,0.00016659,5]
[378546820,1754910656983,-256.18,0.0001667,2]
[378546821,1754910656993,-500.0,0.00016672,2]
[378546822,1754910657002,-528.0278521,0.00016672,2]
[378546823,1754910657012,-502.16685909,0.00016672,2]
[378546824,1754910657021,-500.0,0.00016673,2]
[378546825,1754910657032,-500.0,0.00016673,2]
[378546826,1754910657043,-415.74206446,0.00016673,2]
[378546827,1754910657052,-501.98326103,0.00016673,2]
[378546828,1754910657061,-466.47693658,0.00016673,2]
[378546829,1754910657070,-500.0,0.00016673,2]
[378546830,1754910657082,-500.0,0.00016673,2]
[378546831,1754910657093,-168.17099983,0.00016673,2]
[378546832,1754910657103,-500.0,0.00016673,2]
[378546833,1754910657114,-500.0,0.00016673,2]
[378546834,1754910657123,-501.54359438,0.00016673,2]
[378546835,1754910657133,-500.0,0.00016673,2]
[378546836,1754910657142,-500.0,0.00016673,2]
[378546837,1754910657151,-529.22856801,0.00016673,2]
[378546838,1754910657161,-600.43719356,0.00016673,2]
[378546839,1754910657170,-513.98868184,0.00016673,2]
[378546840,1754910657180,-150.93883738,0.00016673,2]
[378546841,1754910657189,-502.47054377,0.00016673,2]
[378546842,1754910657198,-500.0,0.00016673,2]
[378546843,1754910657208,-166.69,0.00016717,2]
[378546844,1754910657218,-3188.29071803,0.0001674,2]
[378546845,1754910657229,-152.952699,0.0001674,2]
[378546846,1754910657239,-437.714035,0.0001674,2]
[378546847,1754910657248,-437.714035,0.0001674,2]
[378546848,1754910657258,-150.0,0.0001682,2]
[378546849,1754910657267,-300.0,0.00016851,2]
[378546850,1754910657277,-1245.0,0.00016877,2]
[378546851,1754910657287,-213482.53591938,0.000169,2]
[378546852,1754910657296,-10254.09071265,0.000169,2]
[378546853,1754910657305,-3910.64856746,0.000169,2]
[378546854,1754910657315,-1125.92,0.000169,2]
[378546855,1754910657324,-1794.64,0.000169,2]
[378546856,1754910657334,-400.0,0.000169,2]
[378546857,1754910657344,-400.0,0.000169,2]
[378546858,1754910657354,-2199.73,0.000169,2]
[378546859,1754910657363,-400.0,0.000169,2]
[378546860,1754910657374,-401.99550419,0.000169,2]
[378546861,1754910657383,-572.9,0.000169,2]
[378546862,1754910657392,-400.0,0.000169,2]
[378546863,1754910657402,-465.55038905,0.000169,2]
[378546864,1754910657411,-1632.68,0.000169,2]
[378546865,1754910657420,-1242.51,0.000169,2]
[378546866,1754910657430,-4880.84,0.000169,2]
[378546867,1754910657569,-357.77503137,0.000169,2]
[378546868,1754910657579,-400.0,0.000169,2]
[378546869,1754910657590,-3605.25,0.000169,2]
[378546870,1754910657600,-240.07542079,0.000169,2]
[378546871,1754910657610,-1234.88,0.000169,2]
[378546872,1754910657621,-400.0,0.000169,2]
[378546873,1754910657631,-527.5,0.000169,2]
[378546874,1754910657641,-4247.77,0.000169,2]
[378546875,1754910657652,-7111.48,0.000169,2]
[378546876,1754910657662,-2593.58,0.000169,2]
[378546877,1754910657672,-1819.25,0.000169,2]
[378546878,1754910657682,-1193.8,0.000169,2]
[378546879,1754910657692,-400.0,0.000169,2]
[378546880,1754910657701,-8325.71,0.000169,2]
[378546881,1754910657712,-400.0,0.000169,2]
[378546882,1754910657721,-1423.06,0.000169,2]
[378546883,1754910657731,-401.3,0.000169,2]
[378546884,1754910657741,-500.0,0.000169,2]
[378546885,1754910657751,-597.71,0.000169,2]
[378546886,1754910657761,-479.542998,0.000169,2]
[378546887,1754910657771,-400.0,0.000169,2]
[378546888,1754910657782,-400.0,0.000169,2]
[378546889,1754910657792,-400.0,0.000169,2]
[378546890,1754910657803,-400.0,0.000169,2]
[378546891,1754910657812,-2199.08,0.000169,2]
[378546892,1754910657821,-400.0,0.000169,2]
[378546893,1754910657831,-400.0,0.00016901,2]
[378546894,1754910657841,-500.0,0.00016901,2]
[378546895,1754910657851,-400.0,0.00016901,2]
[378546896,1754910657860,-514.59,0.00016901,2]
[378546897,1754910657869,-400.0,0.00016901,2]
[378546898,1754910657878,-422.50226955,0.00016901,2]
[378546899,1754910657887,-400.0,0.00016901,2]
[378546900,1754910657897,-409.19961773,0.00016901,2]
[378546901,1754910657906,-1705.89,0.00016901,2]
[378546902,1754910657916,-400.0,0.00016901,2]
[378546903,1754910657925,-400.0,0.00016901,2]
[378546904,1754910657935,-400.0,0.00016901,2]
[378546905,1754910657944,-770.76,0.00016901,2]
[378546906,1754910657953,-403.65563614,0.00016901,2]
[378546907,1754910657963,-400.0,0.00016901,2]
[378546908,1754910657972,-400.0,0.00016901,2]
[378546909,1754910657981,-400.0,0.00016901,2]
[378546910,1754910657991,-400.0,0.00016901,2]
[378546911,1754910658000,-401.52729949,0.00016901,2]
[378546912,1754910658009,-400.0,0.00016901,2]
[378546913,1754910658019,-400.0,0.00016901,2]
[378546914,1754910658031,-460.69226542,0.00016901,2]
[378546915,1754910658040,-400.0,0.00016901,2]
[378546916,1754910658049,-280.66699173,0.00016901,2]
[378546917,1754910658058,-400.0,0.00016901,2]
[378546918,1754910658069,-400.0,0.00016901,2]
[378546919,1754910658079,-915.52,0.00016901,2]
[378546920,1754910658088,-400.0,0.00016901,2]
[378546921,1754910658098,-402.17259767,0.00016901,2]
[378546922,1754910658109,-402.30132056,0.00016901,2]
[378546923,1754910658119,-683.95,0.00016901,2]
[378546924,1754910658129,-680.96,0.00016901,2]
[378546925,1754910658139,-401.22292516,0.00016901,2]
[378546926,1754910658149,-241.73328502,0.00016901,2]
[378546927,1754910658158,-400.0,0.00016901,2]
[378546928,1754910658167,-585.42,0.00016901,2]
[378546929,1754910658176,-401.22322151,0.00016901,2]
[378546930,1754910658186,-949.89,0.00016901,2]
[378546931,1754910658195,-400.0,0.00016901,2]
[378546932,1754910658205,-400.0,0.00016901,2]
[378546933,1754910658215,-519.24583912,0.00016901,2]
[378546934,1754910658225,-400.0,0.00016901,2]
[378546935,1754910658236,-400.0,0.00016901,2]
[378546936,1754910658245,-653.25,0.00016901,2]
[378546937,1754910658259,-400.0,0.00016901,2]
[378546938,1754910658269,-400.0,0.00016901,2]
[378546939,1754910658278,-475.5,0.00016901,2]
[378546940,1754910658288,-400.0,0.00016901,2]
[378546941,1754910658297,-400.0,0.00016901,2]
[378546942,1754910658306,-406.68809578,0.00016901,2]
[378546943,1754910658315,-160.88,0.00016901,2]
[378546944,1754910658326,-400.0,0.00016901,2]
[378546945,1754910658336,-400.0,0.00016901,2]
[378546946,1754910658347,-400.0,0.00016901,2]
[378546947,1754910658357,-400.0,0.00016901,2]
[378546948,1754910658366,-400.0,0.00016901,2]
[378546949,1754910658376,-1063.32,0.00016901,2]
[378546950,1754910658385,-400.0,0.00016901,2]
[378546951,1754910658394,-400.0,0.00016901,2]
[378546952,1754910658403,-400.0,0.00016901,2]
[378546953,1754910658413,-400.0,0.00016901,2]
[378546954,1754910658422,-400.0,0.00016901,2]
[378546955,1754910658431,-155.74381625,0.00016901,2]
[378546956,1754910658441,-1028.79,0.00016901,2]
[378546957,1754910658450,-400.0,0.00016901,2]
[378546958,1754910658460,-401.39637935,0.00016901,2]
[378546959,1754910658469,-560.67,0.00016901,2]
[378546960,1754910658478,-400.0,0.00016901,2]
[378546961,1754910658488,-800.03,0.00016901,2]
[378546962,1754910658497,-400.0,0.00016901,2]
[378546963,1754910658507,-400.0,0.00016901,2]
[378546964,1754910658517,-400.0,0.00016901,2]
[378546965,1754910658526,-401.75623664,0.00016901,2]
[378546966,1754910658535,-400.0,0.00016901,2]
[378546967,1754910658546,-822.6,0.00016901,2]
[378546968,1754910658555,-400.0,0.00016901,2]
[378546969,1754910658565,-400.0,0.00016901,2]
[378546970,1754910658575,-1477.36,0.00016901,2]
[378546971,1754910658585,-401.87302754,0.00016901,2]
[378546972,1754910658595,-400.0,0.00016901,2]
[378546973,1754910658605,-400.0,0.00016901,2]
[378546974,1754910658614,-400.0,0.00016901,2]
[378546975,1754910658624,-400.0,0.00016901,2]
[378546976,1754910658633,-1020.3,0.00016901,2]
[378546977,1754910658643,-625.0,0.00016901,2]
[378546978,1754910658652,-400.0,0.00016901,2]
[378546979,1754910658662,-400.0,0.00016901,2]
[378546980,1754910658671,-400.0,0.00016901,2]
[378546981,1754910658681,-400.0,0.00016901,2]
[378546982,1754910658690,-400.0,0.00016901,2]
[378546983,1754910658700,-418.89,0.00016901,2]
[378546984,1754910658709,-400.0,0.00016901,2]
[378546985,1754910658720,-400.0,0.00016901,2]
[378546986,1754910658730,-400.0,0.00016901,2]
[378546987,1754910658740,-400.0,0.00016901,2]
[378546988,1754910658750,-400.0,0.00016901,2]
[378546989,1754910658760,-400.0,0.00016901,2]
[378546990,1754910658769,-400.0,0.00016901,2]
[378546991,1754910658779,-400.0,0.00016901,2]
[378546992,1754910658788,-233.32655215,0.00016901,2]
[378546993,1754910658798,-400.0,0.00016901,2]
[378546994,1754910658807,-1851.42,0.00016901,2]
[378546995,1754910658816,-400.0,0.00016901,2]
[378546996,1754910658825,-500.0,0.00016901,2]
[378546997,1754910658835,-400.0,0.00016901,2]
[378546998,1754910658845,-401.79205578,0.00016901,2]
[378546999,1754910658854,-400.0,0.00016901,2]
[378547000,1754910658863,-400.0,0.00016901,2]
[378547001,1754910658872,-1464.48,0.00016901,2]
[378547002,1754910658880,-400.0,0.00016901,2]
[378547003,1754910658890,-400.0,0.00016901,2]
[378547004,1754910658900,-401.1071306,0.00016901,2]
[378547005,1754910658909,-402.0634644,0.00016901,2]
[378547006,1754910658919,-401.56724622,0.00016901,2]
[378547007,1754910658928,-400.0,0.00016901,2]
[378547008,1754910658937,-462.46,0.00016901,2]
[378547009,1754910658947,-1660.28,0.00016901,2]
[378547010,1754910658956,-400.0,0.00016901,2]
[378547011,1754910658965,-500.0,0.00016901,2]
[378547012,1754910658974,-400.0,0.00016901,2]
[378547013,1754910658983,-400.0,0.00016901,2]
[378547014,1754910658992,-400.0,0.00016901,2]
[378547015,1754910659001,-429.79526119,0.00016901,2]
[378547016,1754910659011,-403.34544017,0.00016901,2]
[378547017,1754910659020,-400.0,0.00016901,2]
[378547018,1754910659033,-735.97,0.00016901,2]
[378547019,1754910659042,-400.0,0.00016901,2]
[378547020,1754910659051,-186.33669184,0.00016901,2]
[378547021,1754910659060,-400.0,0.00016901,2]
[378547022,1754910659070,-543.65,0.00016901,2]
[378547023,1754910659081,-402.44812243,0.00016901,2]
[378547024,1754910659090,-1415.05,0.00016901,2]
[378547025,1754910659100,-403.64258467,0.00016901,2]
[378547026,1754910659110,-400.0,0.00016901,2]
[378547027,1754910659119,-500.0,0.00016901,2]
[378547028,1754910659130,-997.62,0.00016901,2]
[378547029,1754910659139,-400.0,0.00016901,2]
[378547030,1754910659148,-403.0940732,0.00016901,2]
[378547031,1754910659158,-1620.38,0.00016901,2]
[378547032,1754910659167,-404.33784258,0.00016901,2]
[378547033,1754910659176,-403.0049834,0.00016901,2]
[378547034,1754910659185,-400.0,0.00016901,2]
[378547035,1754910659194,-403.5225375,0.00016901,2]
[378547036,1754910659203,-1610.0,0.00016901,2]
[378547037,1754910659213,-400.0,0.00016901,2]
[378547038,1754910659222,-564.24,0.00016901,2]
[378547039,1754910659231,-400.0,0.00016901,2]
[378547040,1754910659241,-400.0,0.00016901,2]
[378547041,1754910659250,-733.76,0.00016901,2]
[378547042,1754910659259,-1425.75,0.00016901,2]
[378547043,1754910659268,-400.0,0.00016901,2]
[378547044,1754910659278,-1531.14,0.00016901,2]
[378547045,1754910659287,-3110.34,0.00016901,2]
[378547046,1754910659296,-400.0,0.00016901,2]
[378547047,1754910659306,-400.0,0.00016901,2]
[378547048,1754910659315,-176.21000091,0.00016901,2]
[378547049,1754910659325,-400.0,0.00016901,2]
[378547050,1754910659334,-1935.41,0.00016901,2]
[378547051,1754910659343,-462.06879615,0.00016901,2]
[378547052,1754910659352,-847.84,0.00016901,2]
[378547053,1754910659362,-2151.96,0.00016901,2]
[378547054,1754910659371,-400.0,0.00016901,2]
[378547055,1754910659381,-3044.9,0.00016901,2]
[378547056,1754910659390,-400.0,0.00016901,2]
[378547057,1754910659400,-400.0,0.00016901,2]
[378547058,1754910659409,-400.0,0.00016901,2]
[378547059,1754910659419,-401.51021397,0.00016901,2]
[378547060,1754910659429,-960.22,0.00016901,2]
[378547061,1754910659438,-401.33518799,0.00016901,2]
[378547062,1754910659447,-400.0,0.00016901,2]
[378547063,1754910659458,-1577.87,0.00016901,2]
[378547064,1754910659468,-400.0,0.00016901,2]
[378547065,1754910659479,-400.0,0.00016901,2]
[378547066,1754910659489,-2623.19,0.00016901,2]
[378547067,1754910659498,-400.0,0.00016901,2]
[378547068,1754910659507,-402.02786987,0.00016901,2]
[378547069,1754910659517,-377.34803685,0.00016901,2]
[378547070,1754910659526,-400.0,0.00016901,2]
[378547071,1754910659535,-2008.73,0.00016901,2]
[378547072,1754910659545,-238.40311478,0.00016901,2]
[378547073,1754910659555,-648.28,0.00016901,2]
[378547074,1754910659565,-917.34,0.00016901,2]
[378547075,1754910659574,-400.0,0.00016901,2]
[378547076,1754910659584,-1111.1,0.00016901,2]
[378547077,1754910659593,-400.0,0.00016901,2]
[378547078,1754910659603,-400.0,0.00016901,2]
[378547079,1754910659612,-400.0,0.00016901,2]
[378547080,1754910659622,-400.0,0.00016901,2]
[378547081,1754910659631,-402.17473307,0.00016901,2]
[378547082,1754910659641,-400.0,0.00016901,2]
[378547083,1754910659650,-400.88434232,0.00016901,2]
[378547084,1754910659660,-400.6953872,0.00016901,2]
[378547085,1754910659670,-673.52,0.00016901,2]
[378547086,1754910659680,-400.0,0.00016901,2]
[378547087,1754910659690,-1139.41,0.00016901,2]
[378547088,1754910659699,-401.24119437,0.00016901,2]
[378547089,1754910659709,-400.0,0.00016901,2]
[378547090,1754910659719,-1050.87,0.00016901,2]
[378547091,1754910659729,-400.0,0.00016901,2]
[378547092,1754910659739,-2010.13,0.00016901,2]
[378547093,1754910659748,-400.0,0.00016901,2]
[378547094,1754910659758,-400.0,0.00016901,2]
[378547095,1754910659767,-1475.72,0.00016901,2]
[378547096,1754910659777,-1609.63,0.00016901,2]
[378547097,1754910659786,-400.0,0.00016901,2]
[378547098,1754910659796,-400.0,0.00016901,2]
[378547099,1754910659805,-400.0,0.00016901,2]
[378547100,1754910659815,-400.0,0.00016901,2]
[378547101,1754910659824,-434.16,0.00016901,2]
[378547102,1754910659834,-2067.59,0.00016901,2]
[378547103,1754910659844,-402.01234983,0.00016901,2]
[378547104,1754910659854,-5178.68,0.00016901,2]
[378547105,1754910659863,-400.0,0.00016901,2]
[378547106,1754910659872,-2160.67,0.00016901,2]
[378547107,1754910659882,-927.55,0.00016901,2]
[378547108,1754910659891,-400.0,0.00016901,2]
[378547109,1754910659900,-400.0,0.00016901,2]
[378547110,1754910659910,-400.0,0.00016901,2]
[378547111,1754910659919,-2006.49,0.00016901,2]
[378547112,1754910659929,-400.0,0.00016901,2]
[378547113,1754910659939,-464.27719849,0.00016901,2]
[378547114,1754910659948,-776.8,0.00016901,2]
[378547115,1754910659958,-400.0,0.00016901,2]
[378547116,1754910659967,-400.0,0.00016901,2]
[378547117,1754910659977,-956.24,0.00016901,2]
[378547118,1754910659986,-400.0,0.00016901,2]
[378547119,1754910659996,-7886.64,0.00016901,2]
[378547120,1754910660007,-500.0,0.00016901,2]
[378547121,1754910660016,-400.0,0.00016901,2]
[378547122,1754910660028,-3778.86,0.00016901,2]
[378547123,1754910660040,-412.49493264,0.00016901,2]
[378547124,1754910660050,-1117.91,0.00016901,2]
[378547125,1754910660059,-401.89872875,0.00016901,2]
[378547126,1754910660068,-400.0,0.00016901,2]
[378547127,1754910660078,-2576.86,0.00016901,2]
[378547128,1754910660088,-406.24,0.00016901,2]
[378547129,1754910660098,-400.0,0.00016901,2]
[378547130,1754910660108,-438.30639433,0.00016901,2]
[378547131,1754910660118,-404.96549358,0.00016901,2]
[378547132,1754910660127,-400.0,0.00016901,2]
[378547133,1754910660139,-945.85,0.00016901,2]
[378547134,1754910660150,-2833.28,0.00016901,2]
[378547135,1754910660160,-401.41602286,0.00016901,2]
[378547136,1754910660169,-400.0,0.00016901,2]
[378547137,1754910660179,-437.714035,0.00016901,2]
[378547138,1754910660189,-402.03466725,0.00016901,2]
[378547139,1754910660199,-437.714035,0.00016901,2]
[378547140,1754910660208,-400.0,0.00016901,2]
[378547141,1754910660218,-825.43,0.00016901,2]
[378547142,1754910660228,-401.74640738,0.00016901,2]
[378547143,1754910660238,-543.28794931,0.00016901,2]
[378547144,1754910660248,-460.75,0.00016901,2]
[378547145,1754910660259,-405.51520702,0.00016901,2]
[378547146,1754910660269,-706.94,0.00016901,2]
[378547147,1754910660279,-400.0,0.00016901,2]
[378547148,1754910660289,-402.22828921,0.00016901,2]
[378547149,1754910660298,-401.60133771,0.00016901,2]
[378547150,1754910660308,-517.09,0.00016901,2]
[378547151,1754910660318,-3475.03,0.00016901,2]
[378547152,1754910660327,-400.0,0.00016901,2]
[378547153,1754910660337,-186.45137066,0.00016901,2]
[378547154,1754910660348,-400.0,0.00016901,2]
[378547155,1754910660357,-400.0,0.00016901,2]
[378547156,1754910660367,-400.0,0.00016901,2]
[378547157,1754910660377,-402.72087641,0.00016901,2]
[378547158,1754910660387,-400.0,0.00016901,2]
[378547159,1754910660397,-500.0,0.00016901,2]
[378547160,1754910660407,-500.0,0.00016901,2]
[378547162,1754910660812,-400.0,0.00016901,2]
[378547163,1754910660828,-400.0,0.00016901,2]
[378547164,1754910660838,-400.0,0.00016901,2]
[378547165,1754910660852,-400.0,0.00016901,2]
[378547166,1754910660862,-2222.52,0.00016901,2]
[378547167,1754910660872,-400.0,0.00016901,2]
[378547168,1754910660882,-400.0,0.00016901,2]
[378547169,1754910660891,-400.0,0.00016901,2]
[378547170,1754910660901,-400.0,0.00016901,2]
[378547171,1754910660911,-1969.56,0.00016901,2]
[378547172,1754910660921,-300.0,0.00016901,2]
[378547173,1754910660932,-300.0,0.00016902,2]
[378547175,1754910660942,-200.0,0.00016902,2]
[378547176,1754910660952,-400.0,0.00016902,2]
[378547177,1754910660963,-400.0,0.00016902,2]
[378547178,1754910660972,-400.0,0.00016902,2]
[378547179,1754910660982,-400.0,0.00016902,2]
[378547180,1754910660992,-400.0,0.00016902,2]
[378547181,1754910661002,-400.0,0.00016902,2]
[378547182,1754910661012,-151.0,0.00016902,2]
[378547183,1754910661021,-500.0,0.00016902,2]
[378547184,1754910661036,-177.554781,0.00016902,2]
[378547185,1754910661046,-400.0,0.00016902,2]
[378547186,1754910661055,-1238.77,0.00016902,2]
[378547187,1754910661065,-400.0,0.00016902,2]
[378547188,1754910661075,-835.53,0.00016902,2]
[378547189,1754910661086,-693.96,0.00016902,2]
[378547190,1754910661101,-400.0,0.00016902,2]
[378547191,1754910661113,-425.18,0.00016902,2]
[378547192,1754910661123,-969.39,0.00016902,2]
[378547193,1754910661133,-661.99,0.00016902,2]
[378547194,1754910661143,-400.0,0.00016902,2]
[378547195,1754910661153,-400.0,0.00016902,2]
[378547196,1754910661163,-151.0,0.00016902,2]
[378547197,1754910661172,-733.76,0.00016902,2]
[378547198,1754910661182,-1072.67,0.00016902,2]
[378547199,1754910661192,-1158.96,0.00016902,2]
[378547200,1754910661202,-794.53,0.00016902,2]
[378547201,1754910661212,-400.0,0.00016902,2]
[378547202,1754910661221,-1431.28,0.00016902,2]
[378547203,1754910661232,-620.18,0.00016902,2]
[378547204,1754910661242,-400.0,0.00016902,2]
[378547205,1754910661252,-847.19,0.00016902,2]
[378547206,1754910661261,-400.0,0.00016902,2]
[378547207,1754910661271,-1016.59,0.00016902,2]
[378547208,1754910661281,-400.0,0.00016902,2]
[378547209,1754910661290,-798.69,0.00016902,2]
[378547210,1754910661300,-400.0,0.00016902,2]
[378547211,1754910661311,-400.0,0.00016902,2]
[378547212,1754910661320,-1195.82,0.00016902,2]
[378547213,1754910661330,-767.6,0.00016902,2]
[378547214,1754910661340,-151.0,0.00016902,2]
[378547215,1754910661354,-437.44,0.00016902,2]
[378547216,1754910661364,-400.0,0.00016902,2]
[378547217,1754910661374,-1976.6,0.00016902,2]